Cogmind - Beta 16 @@@ ROGUE MODE // 2025.11.15 @ 12:53:21 Player: Kukri Man Result: Self-destructed Performance ------------- Evolutions (1) 500 Regions Visited (3) 600 Robots Destroyed (31) 155 Value Destroyed (924) 924 Prototype IDs (5) 100 Alien Tech Used (0) 0 Bonus (0) 0 TOTAL SCORE: 2279 Bonus ------- None Cogmind --------- Core Integrity 323/400 Matter 54/300 Energy 265/265 System Corruption 0% Temperature Cool (22) Movement Walking (120) Location -9/Storage Parts ------- > --- POWER (1) -------- Reinforced Ion Engine > --- PROPULSION (3) --- Aluminum Leg Aluminum Leg Aluminum Leg > --- UTILITY (3) ------ Small Storage Unit Seismic Detector Core Shielding > --- WEAPON (2) ------- EM Pulse Gun > --- INVENTORY (8) ---- Ion Engine Hover Unit Flight Unit Peak State ------------ > --- POWER ------------ Light Nuclear Core > --- PROPULSION ------- Cesium-ion Thruster Cesium-ion Thruster Cesium-ion Thruster > --- UTILITY ---------- Improved Heat Sink Small Storage Unit Improved Terrain Scan Processor > --- WEAPON ----------- Pulse Rifle Grenade Launcher > --- INVENTORY -------- Aluminum Leg Aluminum Leg Hover Unit Flight Unit [Rating: 23] Favorites ----------- Power Light Nuclear Core Engine Ion Engine Power Core Light Nuclear Core Propulsion Aluminum Leg Leg Aluminum Leg Wheel Wheel Flight Unit Cesium-ion Thruster Utility Small Storage Unit Device Improved Heat Sink Storage Small Storage Unit Processor Improved Terrain Scan Processor Protection Core Shielding Weapon Grenade Launcher Energy Gun Pulse Rifle Launcher Grenade Launcher Build | -11 -10 -9 -9 ------- Run | Yrd Mat Mat Sto Slots Evolved 2 | . . 2 . Power . | . . . . Propulsion 1 | . . 1 . Utility 1 | . . 1 . Weapon . | . . . . Parts Attached 29 | 8 6 8 7 Power 4 | 1 1 . 2 Engine 3 | 1 . . 2 Core 1 | . 1 . . Reactor . | . . . . Propulsion 12 | 4 1 4 3 Treads . | . . . . Leg 6 | 2 1 . 3 Wheel 2 | 2 . . . Hover . | . . . . Flight 4 | . . 4 . Utility 7 | 1 2 3 1 Device 2 | . 1 1 . Storage 2 | 1 1 . . Processor 2 | . . 2 . Hackware . | . . . . Protection 1 | . . . 1 Artifact . | . . . . Weapon 6 | 2 2 1 1 Energy Gun 5 | 2 1 1 1 Energy Cannon . | . . . . Ballistic Gun . | . . . . Ballistic Cannon . | . . . . Launcher 1 | . 1 . . Special Weapon . | . . . . Impact Weapon . | . . . . Slashing Weapon . | . . . . Piercing Weapon . | . . . . Special Melee Weapon . | . . . . Unidentified Prototypes . | . . . . Parts Lost 4 | . . 1 3 Power 1 | . . . 1 Propulsion . | . . . . Utility 1 | . . . 1 Weapon 2 | . . 1 1 Highest Loss Streak 2 | . . 1 2 To Critical Strikes . | . . . . Average Backups 2 | 1 1 2 2 Power . | . . . . Propulsion 1 | 1 . 2 2 Utility . | . . . . Weapon . | . . . . Tool/Special . | . . . . Unused Backups 1 | . . . 1 Power . | . . . . Propulsion 1 | . . . 1 Utility . | . . . . Weapon . | . . . . Tool/Special . | . . . . Average Slot Usage (%) 89 | . 95 83 87 Engine 4 | . 7 . 4 Core 7 | . 6 11 4 Leg 25 | . 28 21 26 Device 13 | . 10 16 15 Storage 12 | . 14 11 11 Energy Gun 13 | . 18 9 11 Launcher 10 | . 10 11 11 Peak Build Rating 23 | 6 11 23 14 Average Rating 10 | 3 9 13 11 On Entrance 7 | . 6 11 14 Avg Prop Armor Cover (%) 18 | 18 . . . Naked Turns . | . . . . Heaviest Build 23 | 13 16 18 23 Greatest Support 30 | 20 20 20 30 Greatest Overweight (x) 3 | 3 . . . Average Overweight (x) . | 1 . . . Largest Inventory Capacity 20 | 8 20 8 8 Average Capacity 8 | 7 8 8 8 Most Carried 6 | 6 5 6 5 Average Carried 2 | 1 1 2 2 Final Capacity 8 | 8 8 8 8 Final Carried 3 | . 2 2 3 Class Distribution -------------------- 89% | Mutant 10% | Scavenger-Mutant Dominant Class ---------------- Mutant | -10/Materials Mutant | -9/Materials Mutant | -9/Storage Resources | -11 -10 -9 -9 ----------- Run | Yrd Mat Mat Sto Matter Collected 624 | 238 173 115 98 Remotely . | . . . . Salvage Created 792 | . 296 223 273 Parts 47 | . 19 14 14 Haulers Intercepted . | . . . . Recyclers Shooed . | . . . . Parts Field Recycled . | . . . . Retrieved Matter . | . . . . Parts Self-Destructed . | . . . . Prevented . | . . . . Parts Restored . | . . . . Kills | -11 -10 -9 -9 ------- Run | Yrd Mat Mat Sto Combat Hostiles Destroyed 24 | . 8 6 10 Guns 10 | . 3 1 6 AOE 14 | . 5 5 4 Classes Destroyed 8 | . 4 2 2 Builder 1 | . . 1 . Recycler 2 | . 2 . . Watcher 4 | . 2 1 1 Swarmer 6 | . 6 . . Grunt 12 | . 2 5 5 Brawler 1 | . . . 1 Duelist 1 | . . . 1 Sentry 4 | . . 1 3 Best Kill Streak 6 | . 6 5 5 Combat Bots Only 5 | . 3 4 5 Max Kills in Single Turn 2 | . 2 2 1 Gunslinging . | . . . . Exploded 2 | . 2 2 1 Melee . | . . . . Uniques/NPCs Destroyed . | . . . . Combat | -11 -10 -9 -9 -------- Run | Yrd Mat Mat Sto Hostile Shots Fired 72 | . 23 11 38 Missed 28 | . 9 2 17 Hits 44 | . 14 9 21 Projectile 44 | . 14 9 21 Critical Strikes 2 | . . . 2 Damage Taken 626 | . 200 130 296 Core 120 | . 43 28 49 Absorbed by Shields . | . . . . Redirected to Shielding 6 | . . . 6 Core Remaining (%) 91 | 100 82 . . Volleys Fired 63 | . 20 16 27 Largest 2 | . 2 1 2 Hottest 93 | . 90 63 93 Shots Fired 86 | . 35 16 35 Gun 53 | . 28 10 15 Cannon . | . . . . Launcher 33 | . 7 6 20 Special . | . . . . Kinetic . | . . . . Thermal 40 | . 22 9 9 Explosive 33 | . 7 6 20 Electromagnetic 13 | . 6 1 6 Robot Hit Streak 7 | . 6 3 7 Robot Miss Streak 2 | . 2 2 1 Penetration Max . | . . . . Secondary Targets . | . . . . Shots Hit Robots 44 | . 18 6 20 Core Hits 60 | . 14 15 31 Critical Kills . | . . . . Critical Parts Destroyed . | . . . . Critical Strikes . | . . . . Melee Attacks . | . . . . Impact . | . . . . Slashing . | . . . . Piercing . | . . . . Sneak Attacks . | . . . . Combat Hostiles . | . . . . Follow-up Attacks . | . . . . Damage Inflicted 1963 | . 590 398 975 Guns 519 | . 197 104 218 Cannons . | . . . . Explosions 1444 | . 393 294 757 Melee . | . . . . Ramming . | . . . . Kinetic . | . . . . Thermal 394 | . 139 104 151 Explosive 1444 | . 393 294 757 Electromagnetic 125 | . 58 . 67 Impact . | . . . . Slashing . | . . . . Piercing . | . . . . Highest Corruption . | . . . . Average Corruption . | . . . . Corruption Purged . | . . . . Corruption Blocked . | . . . . Overload Shots . | . . . . Overflow Damage 18 | . 18 . . Projectiles . | . . . . Explosions 18 | . 18 . . Melee . | . . . . Knockbacks . | . . . . Impact . | . . . . Kinetic . | . . . . Secondary . | . . . . Self-Inflicted Damage 50 | . 50 . . Shots 2 | . 2 . . Rammed . | . . . . Targets Rammed . | . . . . Kicked . | . . . . Crushed . | . . . . Highest Temperature 277 | . 277 5 90 Average Temperature 92 | . 150 3 38 Received Heat Transfer 264 | . 57 63 144 Siege Activations . | . . . . Martial Activations . | . . . . Shielding Activations . | . . . . Robots Disrupted . | . . . . Combat Hostiles . | . . . . Robots Corrupted . | . . . . Combat Hostiles . | . . . . Parts Fried . | . . . . Impact Corruptions . | . . . . Robots Melted . | . . . . Combat Hostiles . | . . . . Parts Melted 1 | . 1 . . Heat Transferred 915 | . 360 222 333 Parts Sabotaged . | . . . . Parts Stolen . | . . . . Parts Stripped . | . . . . Power Chain Reactions . | . . . . Alert | -11 -10 -9 -9 ------- Run | Yrd Mat Mat Sto Maximum Alert Level 1 | . . . 1 Low Security (%) 85 | 100 100 100 37 Level 1 14 | . . . 62 Level 2 . | . . . . Level 3 . | . . . . Level 4 . | . . . . Level 5 . | . . . . High Security . | . . . . Max Security . | . . . . Peak Influence 293 | . 182 177 293 Initial 72 | . . 72 70 Average 101 | . 79 88 208 Influence Increases 859 | . 292 225 342 Destroy 0b10 Robot/C 480 | . 160 120 200 Destroy 0b10 Robot/NC 35 | . 20 10 5 Destroy Leader 128 | . 34 32 62 Successful Hack 10 | . 5 5 . Disable Machine 90 | . 45 30 15 Destroy Structure 101 | . 28 13 60 Lose Combat Pursuer 15 | . . 15 . Influence Decreases 567 | . 120 230 217 Entered New Map 197 | . . 100 97 Time Decay 330 | . 120 120 90 Lost Part 40 | . . 10 30 Squads Dispatched 4 | . 1 1 2 Investigation 1 | . . 1 . Extermination . | . . . . Reinforcement 1 | . 1 . . Assault . | . . . . Garrison 2 | . . . 2 Intercept . | . . . . Searches Triggered . | . . . . Construction Impeded . | . . . . Haulers Reinforced . | . . . . Active Scanning Responses . | . . . . Cargo Convoy Interrupts . | . . . . Stealth | -11 -10 -9 -9 --------- Run | Yrd Mat Mat Sto Distress Signals 3 | . . 2 1 Communications Jammed . | . . . . Distress Signals . | . . . . Times Spotted 32 | . 13 8 11 Peak Tracking Total 5 | . 3 5 5 Tactical Retreats 1 | . . 1 . Traps | -11 -10 -9 -9 ------- Run | Yrd Mat Mat Sto Traps Triggered 1 | . . 1 . Indirectly . | . . . . Trap Hack Attempts . | . . . . Triggered . | . . . . Disarmed . | . . . . Reprogrammed . | . . . . Reused . | . . . . Traps Extracted . | . . . . Installed . | . . . . Triggered . | . . . . Machines | -11 -10 -9 -9 ---------- Run | Yrd Mat Mat Sto Machines Disabled 6 | . 3 2 1 Max in Single Turn 2 | . 2 1 1 Machines Repaired . | . . . . Machines Dismantled . | . . . . Machines Sabotaged . | . . . . Overloaded Fab Kills . | . . . . Hacking | -11 -10 -9 -9 --------- Run | Yrd Mat Mat Sto Machines Accessed 4 | . 1 2 1 Terminals 4 | . 1 2 1 Fabricators . | . . . . Repair Stations . | . . . . Recycling Units . | . . . . Scanalyzers . | . . . . Garrison Access . | . . . . Total Hacks 8 | . 1 5 2 Successful 5 | . 1 3 1 Failed 3 | . . 2 1 Catastrophic . | . . . . Database Lockouts . | . . . . Manual . | . . . . Terminals 8 | . 1 5 2 Fabricators . | . . . . Repair Stations . | . . . . Recycling Units . | . . . . Scanalyzers . | . . . . Garrison Access . | . . . . Terminal Hacks 5 | . 1 3 1 Record 2 | . . 2 . Prototype ID Bank 3 | . 1 1 1 Fabricator Hacks . | . . . . Repair Station Hacks . | . . . . Recycling Unit Hacks . | . . . . Scanalyzer . | . . . . Garrison Access Hacks . | . . . . Unauthorized Hacks . | . . . . Terminals . | . . . . Fabricators . | . . . . Repair Stations . | . . . . Recycling Units . | . . . . Scanalyzers . | . . . . Garrison Access . | . . . . Data Cores Recovered . | . . . . Used . | . . . . Hacking Detections 1 | . . . 1 Full Trace Events . | . . . . Feedback Events . | . . . . Feedback Blocked . | . . . . Robot Schematics Acquired . | . . . . Robots Built . | . . . . Authchips . | . . . . Time . | . . . . Total Robot Build Rating . | . . . . Part Schematics Acquired . | . . . . Parts Built . | . . . . Authchips . | . . . . Time . | . . . . Total Part Build Rating . | . . . . Part Studies Acquired . | . . . . Parts Repaired . | . . . . Time . | . . . . Parts Recycled . | . . . . Recycled Matter . | . . . . Retrieved Matter . | . . . . Retrieved Components . | . . . . Parts Scanalyzed . | . . . . Part Schematics Acquired . | . . . . Parts Damaged . | . . . . Bothacking | -11 -10 -9 -9 ------------ Run | Yrd Mat Mat Sto Used RIF Installer . | . . . . Robots Hacked . | . . . . Non-combat . | . . . . Combat . | . . . . Robot Hacks Applied . | . . . . Relay Couplers Released . | . . . . Fabnet Peak Effective % . | . . . . Robots Rewired . | . . . . Allies Hacked . | . . . . Hacks Repelled . | . . . . Allies | -11 -10 -9 -9 -------- Run | Yrd Mat Mat Sto Total Allies . | . . . . Largest Group . | . . . . Highest-Rated Group . | . . . . Highest-Rated Ally . | . . . . Total Orders . | . . . . Ally Attacks . | . . . . Total Damage . | . . . . Kills . | . . . . Allies Corrupted . | . . . . Allies Melted . | . . . . Intel | -11 -10 -9 -9 ------- Run | Yrd Mat Mat Sto Active Infowar (turns) 326 | . . 133 193 Seismic 326 | . . 133 193 Robot Analysis Total . | . . . . Derelict Logs Recovered . | . . . . Drone Launches . | . . . . Drone Recoveries . | . . . . Exploration | -11 -10 -9 -9 ------------- Run | Yrd Mat Mat Sto Turns Passed 838 | 113 273 259 193 Spaces Moved 485 | 55 165 171 94 Core 31 | 31 . . . Treads . | . . . . Legs 454 | 24 165 171 94 Wheels . | . . . . Hover . | . . . . Flight . | . . . . Fastest Speed 50 | 50 120 120 120 Average Speed 124 | 156 120 120 120 Slowest Speed 200 | 200 120 120 120 Overloaded Moves . | . . . . Propulsion Burnouts . | . . . . Robots Hopped . | . . . . Potential Cave-ins . | . . . . Cave-ins Triggered . | . . . . Exploration Rate (%) 19 | 4 37 17 20 Regions Visited 3 Branch Regions 1 Pre-discovered Areas . | . . . . Known Exits Taken . | . . . . Unknown Exits Taken 3 | 1 1 1 . Scrap Searched . | . . . . Spaces Dug . | . . . . Terrain Destroyed 129 | . 33 22 74 Melee . | . . . . Projectile . | . . . . AOE 129 | . 33 22 74 Terrain Rammed . | . . . . Walls Destroyed . | . . . . Machines Disabled . | . . . . Actions | -11 -10 -9 -9 --------- Run | Yrd Mat Mat Sto Total 640 | 85 205 212 138 Wait 3 | 3 . . . Move 482 | 54 164 170 94 Hop . | . . . . Pick Up 30 | 8 8 7 7 Fast Attach . | . . . . Attach 25 | 12 2 8 3 Detach 12 | 6 1 5 . Swap 11 | . 5 2 4 Drop 14 | 2 5 4 3 Fire 63 | . 20 16 27 Melee . | . . . . Ram . | . . . . Kick . | . . . . Crush . | . . . . Escape Stasis . | . . . . Rewire . | . . . . Trap . | . . . . Miscellaneous . | . . . . Route ------- -11/Scrapyard -10/Materials (discovered 2 exits: *Mat x2) -9/Materials -9/Storage History --------- Turn | Location | Event 37 | -11/Scrapyard | Discovered new exit (range 15) 114 | -11/Scrapyard | Entered Materials 236 | -10/Materials | Discovered new exit (range 16) 316 | -10/Materials | Build established: Mutant 365 | -10/Materials | Discovered new exit (range 3) 387 | -10/Materials | Entered another Materials area 387 | -9/Materials | Evolved 2 slots: Propulsion x1, Utility x1 401 | -9/Materials | Discovered new exit (range 8) 646 | -9/Materials | Entered Storage 712 | -9/Storage | Garrison activated, responded to threat 839 | -9/Storage | Self-destructed Last Messages --------------- Downloading prototype IDs... Aerolev Unit Imp. Medium Laser 00816_ K-01 Serf collects debris. 00817_ U-05 Engineer lays Concrete. 00819_ U-05 Engineer builds a Door. 00820_ K-01 Serf collects debris. 00823_ U-05 Engineer builds a Wall. 00823_ K-01 Serf collects debris. 00827_ K-01 Serf sends out distress signal. 00827_ U-05 Engineer builds a Wall. 00827_ K-01 Serf collects debris. 00832_ Y-45 Defender IFF system glitched. 00832_ U-05 Engineer suffers critical hit (Burn). 00832_ U-05 Engineer destroyed. 00832_ Grenade Launcher destroyed. 00833_ U-05 Engineer lays Concrete. 00837_ Y-45 Defender destroyed. 00837_ U-05 Engineer lays Concrete. Map ----- +----------------------------------------------------+ | ???????????????????????????????????????????????? | | ???????????????????????????????????????????????? | | ???????????????????????????????????????????????? | | ???????????????????????????????????????????????? | | ???????????????????????????????????????????????? | | ???????????????????????????????????????????????? | | ???????????????????????????????????????????????? | | ???????????????????????????????????????????????? | | ???????????????????????????????????????????????? | | ???????????????????????????????????????????????? | | ????????????????????????????????##???? ????????? | | ???????????????????????????????## #### ????????? | | ??????????????????????????????# # ????????? | | ??????????????????????????###? # ####+##??? | | ????????????????????####### ### + #??? | | ????????????????????# #" % ## #??? | | ????????????????????# #" ## #??? | | ??????????????????### [[! #" ## #??? | | ??????????????????#"" [[! # ## #??? | | ??????????????????#"T [= #""" ## #??? | | ??????????????????#"" #""" ## ##?? | | ??????????????????### #"""^^ ## T#?? | | ????????????????????# =% # ## #?? | | ????????????????????### +#########/#####[= ##? | | ??????????????????### #T#? | | ??????????????????# @ uk + "? | | ??????????????????# ###? | | ??????????????????## % # # # +#####=% ##?? | | ??????????????????# # # ##?? | | ??????????????##### ## # """ # ##?? | | ????????????? #### """"?" # #??? | | ????????????? + "????" # ##?? | | ???????????????"" =!! # "????" # =##?? | | ??????????????"G !!! # "?"""" # #### | | ???????????????"" !!! + """ # * | | ????????????? g # ##### # | | ?????????????? ####???# # | | ??????????????#+######+#???????##############+## | | ????????????????????????????????????????????? ? | | ???????????????????????????????????????????????? | | ???????????????????????????????????????????????? | | ???????????????????????????????????????????????? | | ???????????????????????????????????????????????? | | ???????????????????????????????????????????????? | | ???????????????????????????????????????????????? | | ???????????????????????????????????????????????? | | ???????????????????????????????????????????????? | | ???????????????????????????????????????????????? | | | | | +----------------------------------------------------+ Best States ------------- Heat Dissipation 42 Energy Generation 14 Energy Capacity 265 Matter Stores 300 Matter Capacity 300 Sight Range 16 Terrain Scan Density 110 Core Shielding 20 Evasion (%) 55 Item Schematics ----------------- None Robot Schematics ------------------ None Fabricated ------------ Nothing Repaired ---------- Nothing Studied --------- None Alien Tech Used ----------------- None Achievements -------------- Organ Harvest Troublemaker Challenges ------------ None Game ------ Seed ShiftCommSpoofer Manual? 0 Play Time 00:25:13 Cumulative 2.5 hours Start 2025.11.15 @ 10:16:15 End 2025.11.15 @ 12:53:21 Sessions 4 Manual Loads 0 Difficulty Rogue Special Mode None Game No. 5 Rogue 3 Adventurer 2 Explorer 0 Win Type - Total 0 Types 0/0/0/0/0/0/0/0/0/0 Lore% 2 Gallery% 4 Achievement% 4 Wizard Run 0 Options --------- Layout 1 ASCII 0 Keyboard 0 Movement Mouse Keybinds 0 Fullscreen 1 Font 32/SmallcapsGlow Map View 50x40 Zoom Use 0% Tactical HUD 1 Map Filters NONE Filters NONE Steam 1 RUN: c66c2f31-24ae-4d7a-9b62-83e447d8f6f7